fUST/lending_fUST_20250628
["ID","MTS","AMOUNT","RATE_DAILY","PERIOD"]
[368256073,1751075450583,-252.24815836,0.00022465,2]
[368256074,1751075450593,-1165.43,0.00022465,2]
[368256075,1751075450602,-460.0,0.00022465,2]
[368256076,1751075450611,-936.86,0.00022465,2]
[368256077,1751075450621,-460.0,0.00022465,2]
[368256078,1751075450630,-1749.87,0.00022465,2]
[368256079,1751075450640,-466.91,0.00022465,2]
[368256080,1751075450649,-641.71,0.00022465,2]
[368256081,1751075450659,-1748.96,0.00022465,2]
[368256082,1751075450669,-504.27,0.00022465,2]
[368256083,1751075450678,-1630.37,0.00022465,2]
[368256084,1751075450687,-411.73899576,0.00022465,2]
[368256085,1751075450696,-1580.91,0.00022465,2]
[368256086,1751075450706,-1387.59,0.00022465,2]
[368256087,1751075450715,-2604.78,0.00022465,2]
[368256088,1751075450724,-460.0,0.00022465,2]
[368256089,1751075450733,-1742.3,0.00022465,2]
[368256090,1751075450743,-462.64,0.00022465,2]
[368256091,1751075450752,-410.72831888,0.00022465,2]
[368256092,1751075450761,-4152.59,0.00022465,2]
[368256093,1751075450770,-699.66,0.00022465,2]
[368256094,1751075450779,-521.66,0.00022465,2]
[368256095,1751075450789,-970.74,0.00022465,2]
[368256096,1751075450798,-460.0,0.00022465,2]
[368256097,1751075450807,-910.11,0.00022465,2]
[368256098,1751075450817,-460.0,0.00022465,2]
[368256099,1751075450826,-1509.27,0.00022465,2]
[368256100,1751075450835,-460.0,0.00022465,2]
[368256101,1751075450844,-621.59,0.00022465,2]
[368256102,1751075450853,-460.0,0.00022465,2]
[368256103,1751075450862,-1187.22,0.00022465,2]
[368256104,1751075450871,-460.0,0.00022465,2]
[368256105,1751075450881,-637.56,0.00022465,2]
[368256106,1751075450890,-1056.6,0.00022465,2]
[368256107,1751075450899,-1623.49,0.00022465,2]
[368256108,1751075450908,-460.0,0.00022465,2]
[368256109,1751075450917,-460.0,0.00022465,2]
[368256110,1751075450927,-155.75824656,0.00022466,2]
[368256111,1751075450935,-1800.0,0.00022483,2]
[368256112,1751075450944,-1500.0,0.00022483,2]
[368256113,1751075450953,-1500.0,0.00022483,2]
[368256114,1751075450962,-1001.84687181,0.00022483,2]
[368256115,1751075450971,-1500.0,0.00022483,2]
[368256116,1751075450980,-171.0,0.00022499,3]
[368256117,1751075450989,-171.0,0.00022499,3]
[368256118,1751075450998,-151.0,0.00022499,3]
[368256119,1751075451007,-151.0,0.00022499,3]
[368256120,1751075451017,-151.0,0.00022499,3]
[368256121,1751075451026,-151.0,0.00022499,3]
[368256122,1751075451035,-151.0,0.00022499,3]
[368256123,1751075451044,-151.0,0.00022499,3]
[368256124,1751075451053,-171.0,0.00022499,3]
[368256125,1751075451062,-151.0,0.00022499,3]
[368256126,1751075451071,-272.44324913,0.00022499,3]
[368256127,1751075451082,-157.0,0.00022499,3]
[368256128,1751075451094,-151.0,0.00022499,3]
[368256129,1751075451103,-151.0,0.00022499,3]
[368256130,1751075451113,-157.0,0.00022499,3]
[368256131,1751075451122,-151.0,0.00022499,3]
[368256132,1751075451133,-157.0,0.00022499,3]
[368256133,1751075451142,-151.0,0.00022499,3]
[368256134,1751075451151,-157.0,0.00022499,3]
[368256135,1751075451161,-151.0,0.00022499,3]
[368256136,1751075451170,-157.0,0.00022499,3]
[368256137,1751075451179,-151.0,0.00022499,3]
[368256138,1751075451188,-160.19651541,0.00022499,3]
[368256139,1751075451198,-151.0,0.00022499,3]
[368256140,1751075451207,-154.0,0.00022499,3]
[368256141,1751075451216,-151.0,0.00022499,3]
[368256142,1751075451225,-154.0,0.00022499,3]
[368256143,1751075451234,-151.0,0.00022499,3]
[368256144,1751075451243,-151.0,0.00022499,3]
[368256145,1751075451253,-151.0,0.00022499,3]
[368256146,1751075451262,-151.0,0.00022499,3]
[368256147,1751075451270,-154.0,0.00022499,3]
[368256148,1751075451280,-151.0,0.00022499,3]
[368256149,1751075451289,-154.0,0.00022499,3]
[368256150,1751075451298,-201.07244786,0.00022499,3]
[368256151,1751075451307,-151.0,0.00022499,3]
[368256152,1751075451317,-154.0,0.00022499,3]
[368256153,1751075451325,-151.0,0.00022499,3]
[368256154,1751075451335,-151.0,0.00022499,3]
[368256155,1751075451344,-154.0,0.00022499,3]
[368256156,1751075451354,-151.0,0.00022499,3]
[368256157,1751075451363,-154.0,0.00022499,3]
[368256158,1751075451372,-151.0,0.00022499,3]
[368256159,1751075451382,-151.0,0.00022499,3]
[368256160,1751075451391,-154.0,0.00022499,3]
[368256161,1751075451400,-151.0,0.00022499,3]
[368256162,1751075451410,-154.0,0.00022499,3]
[368256163,1751075451419,-151.0,0.00022499,3]
[368256164,1751075451429,-154.0,0.00022499,3]
[368256165,1751075451438,-152.75513992,0.00022499,3]
[368256166,1751075451449,-154.17745189,0.00022499,3]
[368256167,1751075451458,-151.0,0.00022499,3]
[368256168,1751075451467,-151.0,0.00022499,3]
[368256169,1751075451476,-151.0,0.00022499,3]
[368256170,1751075451486,-317.0,0.00022499,3]
[368256171,1751075451496,-317.0,0.00022499,3]
[368256172,1751075451505,-317.0,0.00022499,3]
[368256173,1751075451514,-317.0,0.00022499,3]
[368256174,1751075451524,-317.0,0.00022499,3]
[368256175,1751075451533,-317.0,0.00022499,3]
[368256176,1751075451542,-317.0,0.00022499,3]
[368256177,1751075451551,-317.0,0.00022499,3]
[368256178,1751075451561,-317.0,0.00022499,3]
[368256179,1751075451570,-317.0,0.00022499,3]
[368256180,1751075451579,-317.0,0.00022499,3]
[368256181,1751075451588,-317.0,0.00022499,3]
[368256182,1751075451598,-317.0,0.00022499,3]
[368256183,1751075451607,-317.0,0.00022499,3]
[368256184,1751075451616,-317.0,0.00022499,3]
[368256185,1751075451626,-317.0,0.00022499,3]
[368256186,1751075451635,-317.0,0.00022499,3]
[368256187,1751075451645,-317.0,0.00022499,3]
[368256188,1751075451654,-317.0,0.00022499,3]
[368256189,1751075451663,-317.0,0.00022499,3]
[368256190,1751075451673,-317.0,0.00022499,3]
[368256191,1751075451682,-317.0,0.00022499,3]
[368256192,1751075451691,-317.0,0.00022499,3]
[368256193,1751075451701,-317.0,0.00022499,3]
[368256194,1751075451710,-317.0,0.00022499,3]
[368256195,1751075451719,-278.43095285,0.00022499,3]
[368256196,1751075451729,-317.0,0.00022499,3]
[368256197,1751075451738,-317.0,0.00022499,3]
[368256198,1751075451747,-317.0,0.00022499,3]
[368256199,1751075451757,-317.0,0.00022499,3]
[368256200,1751075451768,-317.0,0.00022499,3]
[368256201,1751075451777,-317.0,0.00022499,3]
[368256202,1751075451787,-317.0,0.00022499,3]
[368256203,1751075451797,-5050.67777407,0.000225,2]
[368256204,1751075451806,-606.69962689,0.00022554,2]
[368256205,1751075451815,-151.70494,0.00022555,7]
[368256206,1751075451824,-7138.87120122,0.00022555,7]
[368256207,1751075451833,-7725.0134034,0.00022599,2]
[368256208,1751075451843,-660358.06341258,0.00022599,2]
[368256209,1751075452720,-5113.02886269,0.00022599,2]
[368256210,1751075452732,-1092.32587227,0.00022599,2]
[368256211,1751075452744,-173440.43025624,0.00022599,2]
[368256212,1751075452823,-460.0,0.00019178,2]
[368256213,1751075452833,-9193.59839927,0.00022599,2]
[368256214,1751075452932,-465.89746727,0.00019178,2]
[368256215,1751075452942,-460.0,0.00019178,2]
[368256216,1751075452952,-460.0,0.00019452,2]
[368256217,1751075452962,-460.0,0.00019452,2]
[368256218,1751075452972,-460.0,0.00019726,2]
[368256219,1751075452981,-460.0,0.00019726,2]
[368256220,1751075452991,-460.0,0.0002,2]
[368256221,1751075453000,-460.0,0.00020273,2]
[368256222,1751075453010,-460.0,0.00020547,2]
[368256223,1751075453020,-460.0,0.00020821,2]
[368256224,1751075453029,-109269.28651267,0.00022599,2]
[368256225,1751075453078,-465.68678061,0.00019178,2]
[368256226,1751075453090,-51.26953323,0.00022599,2]
[368256227,1751075453323,-40.73490187,0.00022599,2]
[368256234,1751076116070,435.42405828,0.00018,2]
[368256235,1751076116094,1750.57594172,0.00018,2]
[368256237,1751076432936,4668.68144399,0.00026095,60]
[368256239,1751076493449,317.942372,0.00013699,2]
[368256240,1751076560471,270.0,0.00026095,60]
[368256256,1751076632024,-420.0,0.00018588,2]
[368256257,1751076632034,-300.0,0.00018588,2]
[368256258,1751076632044,-300.0,0.00018588,2]
[368256259,1751076632054,-62.29462306,0.00018588,2]
[368256260,1751076632066,-1137.70537694,0.00018588,2]
[368256261,1751076632076,-1430.42144347,0.00018589,2]
[368256262,1751076632087,-650.84243801,0.00018589,2]
[368256263,1751076632103,-475.14342267,0.00018589,2]
[368256264,1751076632114,-10364.99996,0.00018589,2]
[368256265,1751076632132,-3681.56,0.00018589,2]
[368256266,1751076632143,-8297.03273585,0.00018589,2]
[368256267,1751076632152,-179.61920205,0.00018603,2]
[368256268,1751076632162,-332.60834101,0.00019077,2]
[368256269,1751076632171,-160.0,0.00019161,2]
[368256270,1751076632180,-500.0,0.00019177,2]
[368256271,1751076632191,-500.0,0.00019177,2]
[368256272,1751076632201,-500.0,0.00019177,2]
[368256273,1751076632213,-449.24167095,0.00019177,2]
[368256288,1751076637974,-50.75832905,0.00019177,2]
[368256289,1751076637984,-599.42044295,0.00019177,2]
[368256290,1751076637993,-500.0,0.00019177,2]
[368256291,1751076638002,-501.75063142,0.00019177,2]
[368256293,1751076638012,-500.0,0.00019177,2]
[368256295,1751076638021,-500.0,0.00019177,2]
[368256297,1751076638031,-500.0,0.00019177,2]
[368256299,1751076638040,-500.0,0.00019177,2]
[368256300,1751076638049,-500.0,0.00019177,2]
[368256301,1751076638058,-463.12540182,0.00019177,2]
[368256302,1751076638067,-500.0,0.00019177,2]
[368256303,1751076638076,-500.0,0.00019177,2]
[368256304,1751076638085,-500.0,0.00019177,2]
[368256305,1751076638094,-469.4334534,0.00019178,2]
[368256306,1751076638104,-460.0,0.00019178,2]
[368256307,1751076638113,-461.3121732,0.00019178,2]
[368256308,1751076638122,-460.0,0.00019178,2]
[368256309,1751076638131,-341.8984415,0.00019178,2]
[368256310,1751076638141,-462.27720161,0.00019178,2]
[368256311,1751076638150,-460.0,0.00019178,2]
[368256312,1751076638159,-460.0,0.00019178,2]
[368256313,1751076638168,-460.0,0.00019178,2]
[368256314,1751076638178,-516.1784221,0.00019178,2]
[368256315,1751076638187,-463.15412164,0.00019178,2]
[368256316,1751076638196,-350.0,0.00019178,2]
[368256317,1751076638206,-467.62568133,0.00019178,2]
[368256318,1751076638215,-460.0,0.00019178,2]
[368256319,1751076638224,-203.84841664,0.00019178,2]
[368256320,1751076638244,-262.85660786,0.00019178,2]
[368256321,1751076638253,-461.27326145,0.00019178,2]
[368256322,1751076638262,-460.0,0.00019178,2]
[368256323,1751076638271,-157.38745292,0.00019178,2]
[368256324,1751076638286,-197.44055793,0.00019178,2]
[368256325,1751076638295,-464.01105481,0.00019178,2]
[368256326,1751076638305,-461.81985129,0.00019178,2]
[368256327,1751076638314,-359.48449172,0.00019178,2]
[368256328,1751076638324,-460.0,0.00019178,2]
[368256329,1751076638333,-463.89461951,0.00019178,2]
[368256330,1751076638342,-462.34145597,0.00019178,2]
[368256331,1751076638351,-378.70774111,0.00019178,2]
[368256332,1751076638360,-460.0,0.00019178,2]
[368256333,1751076638369,-462.75405402,0.00019178,2]
[368256334,1751076638378,-461.77315421,0.00019178,2]
[368256335,1751076638387,-460.0,0.00019178,2]
[368256336,1751076638396,-460.0,0.00019178,2]
[368256337,1751076638405,-464.18163341,0.00019178,2]
[368256338,1751076638415,-465.15500099,0.00019178,2]
[368256339,1751076638424,-464.12988367,0.00019178,2]
[368256340,1751076638433,-464.79390317,0.00019178,2]
[368256341,1751076638442,-460.0,0.00019178,2]
[368256342,1751076638451,-468.62265076,0.00019178,2]
[368256343,1751076638460,-468.64881117,0.00019178,2]
[368256344,1751076638470,-463.51317371,0.00019178,2]
[368256345,1751076638479,-467.67832129,0.00019178,2]
[368256346,1751076638488,-464.22166712,0.00019178,2]
[368256347,1751076638497,-465.10826001,0.00019178,2]
[368256348,1751076638506,-467.58813179,0.00019178,2]
[368256349,1751076638515,-460.0,0.00019178,2]
[368256350,1751076638524,-466.69732481,0.00019178,2]
[368256351,1751076638533,-466.98844042,0.00019178,2]
[368256352,1751076638542,-465.34740923,0.00019178,2]
[368256353,1751076638551,-460.0,0.00019178,2]
[368256354,1751076638560,-460.0,0.00019178,2]
[368256355,1751076638570,-1000.0,0.00019178,2]
[368256356,1751076638579,-460.0,0.00019178,2]
[368256357,1751076638589,-483.98,0.00019178,2]
[368256358,1751076638599,-465.33069148,0.00019178,2]
[368256359,1751076638608,-379.33002214,0.00019178,2]
[368256360,1751076638618,-466.33033454,0.00019178,2]
[368256361,1751076638627,-460.0,0.00019178,2]
[368256362,1751076638637,-460.0,0.00019178,2]
[368256363,1751076638646,-547.63288565,0.00019178,2]
[368256364,1751076638655,-470.13878201,0.00019178,2]
[368256365,1751076638665,-467.60785746,0.00019178,2]
[368256366,1751076638674,-470.15478043,0.00019178,2]
[368256367,1751076638684,-460.0,0.00019178,2]
[368256368,1751076638693,-460.0,0.00019178,2]
[368256369,1751076638703,-465.68415224,0.00019178,2]
[368256370,1751076638715,-503.41417105,0.00019178,2]
[368256371,1751076638724,-460.0,0.00019178,2]
[368256372,1751076638734,-460.0,0.00019178,2]
[368256373,1751076638743,-460.0,0.00019178,2]
[368256374,1751076638752,-468.09244545,0.00019178,2]
[368256375,1751076638762,-464.82870486,0.00019178,2]
[368256376,1751076638771,-152.5,0.00019178,2]
[368256377,1751076638781,-465.41833915,0.00019178,2]
[368256378,1751076638791,-464.11087564,0.00019178,2]
[368256379,1751076638800,-464.3763362,0.00019178,2]
[368256380,1751076638810,-475.19,0.00019178,2]
[368256381,1751076638819,-460.0,0.00019178,2]
[368256382,1751076638828,-460.0,0.00019178,2]
[368256383,1751076638837,-460.0,0.00019178,2]
[368256384,1751076638847,-460.0,0.00019178,2]
[368256385,1751076638856,-460.0,0.00019178,2]
[368256386,1751076638865,-460.0,0.00019178,2]
[368256387,1751076638875,-460.0,0.00019178,2]
[368256388,1751076638885,-249.17457359,0.00019178,2]
[368256389,1751076638894,-460.0,0.00019178,2]
[368256390,1751076638903,-460.0,0.00019178,2]
[368256391,1751076638912,-460.0,0.00019178,2]
[368256392,1751076638921,-460.0,0.00019178,2]
[368256393,1751076638930,-460.0,0.00019178,2]
[368256394,1751076638940,-460.0,0.00019178,2]
[368256395,1751076638949,-460.0,0.00019178,2]
[368256396,1751076638958,-463.70884281,0.00019178,2]
[368256397,1751076638968,-460.0,0.00019178,2]
[368256398,1751076639128,-186.6932867,0.00019178,2]
[368256399,1751076639138,-460.0,0.00019178,2]
[368256400,1751076639147,-460.0,0.00019178,2]
[368256401,1751076639157,-469.31052257,0.00019178,2]
[368256402,1751076639166,-460.0,0.00019178,2]
[368256403,1751076639175,-447.78489201,0.00019178,2]
[368256404,1751076639184,-460.0,0.00019178,2]
[368256405,1751076639195,-311.26782014,0.00019178,2]
[368256406,1751076639204,-305.49161668,0.00019178,2]
[368256407,1751076639214,-467.65639241,0.00019178,2]
[368256408,1751076639223,-460.0,0.00019178,2]
[368256409,1751076639232,-460.0,0.00019178,2]
[368256410,1751076639241,-1494.61,0.00019178,2]
[368256411,1751076639250,-460.0,0.00019178,2]
[368256412,1751076639259,-550.38,0.00019178,2]
[368256413,1751076639269,-460.0,0.00019178,2]
[368256414,1751076639278,-460.0,0.00019178,2]
[368256415,1751076639287,-460.0,0.00019178,2]
[368256416,1751076639297,-460.0,0.00019178,2]
[368256417,1751076639306,-460.0,0.00019178,2]
[368256418,1751076639315,-460.0,0.00019178,2]
[368256419,1751076639324,-460.0,0.00019178,2]
[368256420,1751076639333,-460.0,0.00019178,2]
[368256421,1751076639342,-926.88,0.00019178,2]
[368256422,1751076639351,-410.0,0.00019178,2]
[368256423,1751076639360,-1350.12,0.00019178,2]
[368256424,1751076639370,-460.0,0.00019178,2]
[368256425,1751076639379,-471.2254389,0.00019178,2]
[368256426,1751076639387,-460.0,0.00019178,2]
[368256427,1751076639397,-460.0,0.00019178,2]
[368256428,1751076639406,-460.0,0.00019178,2]
[368256429,1751076639415,-1491.33,0.00019178,2]
[368256430,1751076639424,-460.0,0.00019178,2]
[368256431,1751076639433,-460.0,0.00019178,2]
[368256432,1751076639442,-460.0,0.00019178,2]
[368256433,1751076639452,-460.0,0.00019178,2]
[368256434,1751076639461,-460.0,0.00019178,2]
[368256435,1751076639470,-462.0801904,0.00019178,2]
[368256436,1751076639479,-1187.29,0.00019178,2]
[368256437,1751076639488,-707.43,0.00019178,2]
[368256438,1751076639497,-460.0,0.00019178,2]
[368256439,1751076639506,-1495.51,0.00019178,2]
[368256440,1751076639515,-460.0,0.00019178,2]
[368256441,1751076639524,-467.00399943,0.00019178,2]
[368256442,1751076639535,-591.73929081,0.00019178,2]
[368256443,1751076639544,-460.01,0.00019178,2]
[368256444,1751076639554,-460.0,0.00019178,2]
[368256445,1751076639563,-1174.02,0.00019178,2]
[368256446,1751076639573,-790.76,0.00019178,2]
[368256447,1751076639582,-465.95480932,0.00019178,2]
[368256448,1751076639591,-502.84,0.00019178,2]
[368256449,1751076639601,-460.0,0.00019178,2]
[368256450,1751076639610,-460.0,0.00019178,2]
[368256451,1751076639619,-600.39,0.00019178,2]
[368256452,1751076639629,-578.87,0.00019178,2]
[368256453,1751076639638,-460.0,0.00019178,2]
[368256454,1751076639647,-460.0,0.00019178,2]
[368256455,1751076639656,-460.0,0.00019178,2]
[368256456,1751076639666,-469.61,0.00019178,2]
[368256457,1751076639676,-972.57,0.00019178,2]
[368256458,1751076639685,-460.0,0.00019178,2]
[368256459,1751076639694,-460.0,0.00019178,2]
[368256460,1751076639704,-194.28400823,0.00019178,2]
[368256461,1751076639715,-460.0,0.00019178,2]
[368256462,1751076639725,-460.0,0.00019178,2]
[368256463,1751076639734,-460.0,0.00019178,2]
[368256464,1751076639743,-460.0,0.00019178,2]
[368256465,1751076639753,-3008.83,0.00019178,2]
[368256466,1751076639763,-460.0,0.00019178,2]
[368256467,1751076639772,-460.0,0.00019178,2]
[368256468,1751076639782,-444.34554033,0.00019178,2]
[368256469,1751076639793,-460.0,0.00019178,2]
[368256470,1751076639803,-460.0,0.00019178,2]
[368256471,1751076639812,-782.26,0.00019178,2]
[368256472,1751076639822,-460.0,0.00019178,2]
[368256473,1751076639831,-824.54,0.00019178,2]
[368256474,1751076639841,-506.07735109,0.00019178,2]
[368256475,1751076639850,-484.39051988,0.00019178,2]
[368256477,1751076639859,-460.0,0.00019178,2]
[368256479,1751076639869,-460.0,0.00019178,2]
[368256481,1751076639878,-460.0,0.00019178,2]
[368256483,1751076639887,-469.35577339,0.00019178,2]
[368256485,1751076639897,-1088.23,0.00019178,2]
[368256487,1751076639906,-461.20794776,0.00019178,2]
[368256489,1751076639916,-517.11,0.00019178,2]
[368256491,1751076639926,-879.85,0.00019178,2]
[368256493,1751076639935,-464.76228172,0.00019178,2]
[368256495,1751076639944,-1307.07,0.00019178,2]
[368256497,1751076639953,-460.0,0.00019178,2]
[368256499,1751076639963,-462.48528972,0.00019178,2]
[368256501,1751076639972,-460.0,0.00019178,2]
[368256503,1751076639981,-1184.11,0.00019178,2]
[368256505,1751076639990,-218.043412,0.00019178,2]
[368256507,1751076639999,-727.78028229,0.00019356,2]
[368256509,1751076640008,-321.44,0.00019442,3]
[368256511,1751076640017,-160.72,0.00019442,3]
[368256513,1751076640025,-482.18,0.00019442,3]
[368256515,1751076640034,-500.0,0.00019451,2]
[368256517,1751076640043,-263.05515681,0.00019451,2]
[368256518,1751076640052,-460.0,0.00019452,2]
[368256520,1751076640062,-460.0,0.00019452,2]
[368256522,1751076640071,-460.0,0.00019452,2]
[368256524,1751076640080,-460.0,0.00019452,2]
[368256526,1751076640090,-547.56183253,0.00019452,2]
[368256528,1751076640099,-259.40644674,0.00019452,2]
[368256530,1751076640109,-460.0,0.00019452,2]
[368256532,1751076640119,-460.0,0.00019452,2]
[368256534,1751076640128,-475.19,0.00019452,2]
[368256536,1751076640137,-460.0,0.00019452,2]
[368256537,1751076640146,-460.0,0.00019452,2]
[368256539,1751076640155,-460.0,0.00019452,2]
[368256541,1751076640164,-460.0,0.00019452,2]
[368256542,1751076640173,-460.0,0.00019452,2]
[368256543,1751076640182,-460.0,0.00019452,2]
[368256544,1751076640191,-460.0,0.00019452,2]
[368256545,1751076640201,-460.0,0.00019452,2]
[368256546,1751076640211,-1494.61,0.00019452,2]
[368256547,1751076640220,-460.0,0.00019452,2]
[368256548,1751076640229,-550.38,0.00019452,2]
[368256549,1751076640239,-460.0,0.00019452,2]
[368256550,1751076640248,-460.0,0.00019452,2]
[368256551,1751076640259,-460.0,0.00019452,2]
[368256553,1751076640268,-384.75811423,0.00019452,2]
[368256555,1751076640279,-926.88,0.00019452,2]
[368256557,1751076640288,-1350.12,0.00019452,2]
[368256559,1751076640297,-460.0,0.00019452,2]
[368256561,1751076640307,-460.0,0.00019452,2]
[368256563,1751076640315,-460.0,0.00019452,2]
[368256565,1751076640325,-460.0,0.00019452,2]
[368256567,1751076640334,-1491.33,0.00019452,2]
[368256569,1751076640343,-460.0,0.00019452,2]
[368256571,1751076640352,-460.0,0.00019452,2]
[368256572,1751076640361,-460.0,0.00019452,2]
[368256573,1751076640369,-1187.29,0.00019452,2]
[368256574,1751076640379,-707.43,0.00019452,2]
[368256575,1751076640387,-460.0,0.00019452,2]
[368256576,1751076640397,-1495.51,0.00019452,2]
[368256577,1751076640406,-460.01,0.00019452,2]
[368256578,1751076640415,-460.0,0.00019452,2]
[368256579,1751076640424,-1174.02,0.00019452,2]
[368256580,1751076640433,-790.76,0.00019452,2]
[368256581,1751076640442,-502.84,0.00019452,2]
[368256582,1751076640452,-600.39,0.00019452,2]
[368256583,1751076640461,-460.0,0.00019452,2]
[368256584,1751076640470,-578.87,0.00019452,2]
[368256585,1751076640479,-460.0,0.00019452,2]
[368256586,1751076640489,-440.0,0.00019452,2]
[368256587,1751076640497,-972.57,0.00019452,2]
[368256588,1751076640507,-460.0,0.00019452,2]
[368256589,1751076640517,-460.0,0.00019452,2]
[368256590,1751076640525,-460.0,0.00019452,2]
[368256591,1751076640534,-358.37067242,0.00019452,2]
[368256592,1751076640543,-3008.83,0.00019452,2]
[368256593,1751076640553,-460.0,0.00019452,2]
[368256594,1751076640563,-460.0,0.00019452,2]
[368256595,1751076640571,-460.0,0.00019452,2]
[368256596,1751076640581,-460.0,0.00019452,2]
[368256597,1751076640590,-782.26,0.00019452,2]
[368256598,1751076640599,-460.0,0.00019452,2]
[368256599,1751076640608,-824.54,0.00019452,2]
[368256600,1751076640617,-460.0,0.00019452,2]
[368256601,1751076640627,-460.0,0.00019452,2]
[368256602,1751076640636,-478.38765039,0.00019452,2]
[368256603,1751076640646,-1088.23,0.00019452,2]
[368256604,1751076640658,-517.11,0.00019452,2]
[368256605,1751076640668,-879.85,0.00019452,2]
[368256606,1751076640677,-1307.07,0.00019452,2]
[368256607,1751076640686,-460.0,0.00019452,2]
[368256608,1751076640695,-1184.11,0.00019452,2]
[368256609,1751076640705,-460.0,0.00019726,2]
[368256610,1751076640718,-460.0,0.00019726,2]
[368256611,1751076640727,-460.0,0.00019726,2]
[368256612,1751076640737,-475.19,0.00019726,2]
[368256613,1751076640746,-580.681835,0.00019726,2]
[368256614,1751076640755,-460.0,0.00019726,2]
[368256615,1751076640765,-460.0,0.00019726,2]
[368256616,1751076640775,-460.0,0.00019726,2]
[368256617,1751076640784,-460.0,0.00019726,2]
[368256618,1751076640795,-460.0,0.00019726,2]
[368256619,1751076640805,-460.0,0.00019726,2]
[368256620,1751076640815,-460.0,0.00019726,2]
[368256621,1751076640825,-1494.61,0.00019726,2]
[368256622,1751076640836,-460.0,0.00019726,2]
[368256623,1751076640845,-550.38,0.00019726,2]
[368256624,1751076640853,-460.0,0.00019726,2]
[368256625,1751076640863,-460.0,0.00019726,2]
[368256626,1751076640872,-460.0,0.00019726,2]
[368256627,1751076640881,-926.88,0.00019726,2]
[368256628,1751076640891,-1350.12,0.00019726,2]
[368256629,1751076640901,-460.0,0.00019726,2]
[368256630,1751076640910,-460.0,0.00019726,2]
[368256631,1751076640920,-460.0,0.00019726,2]
[368256632,1751076640930,-460.0,0.00019726,2]
[368256633,1751076640939,-1491.33,0.00019726,2]
[368256634,1751076640949,-460.0,0.00019726,2]
[368256635,1751076640958,-460.0,0.00019726,2]
[368256636,1751076640968,-460.0,0.00019726,2]
[368256637,1751076640978,-1187.29,0.00019726,2]
[368256638,1751076640987,-707.43,0.00019726,2]
[368256639,1751076640996,-460.0,0.00019726,2]
[368256640,1751076641005,-1495.51,0.00019726,2]
[368256641,1751076641014,-460.01,0.00019726,2]
[368256642,1751076641024,-460.0,0.00019726,2]
[368256643,1751076641033,-1174.02,0.00019726,2]
[368256644,1751076641042,-790.76,0.00019726,2]
[368256645,1751076641051,-502.84,0.00019726,2]
[368256646,1751076641060,-600.39,0.00019726,2]
[368256647,1751076641069,-460.0,0.00019726,2]
[368256648,1751076641078,-578.87,0.00019726,2]
[368256649,1751076641088,-460.0,0.00019726,2]
[368256650,1751076641097,-972.57,0.00019726,2]
[368256651,1751076641107,-460.0,0.00019726,2]
[368256652,1751076641118,-460.0,0.00019726,2]
[368256653,1751076641128,-460.0,0.00019726,2]
[368256654,1751076641137,-3008.83,0.00019726,2]
[368256655,1751076641146,-460.0,0.00019726,2]